[Event "Championnat d'Europe de Blitz"]
[Date "2024.12.09"]
[White "Beerdsen, Thomas"]
[Black "Santos Latasa, Jaime"]
[WhiteElo "2502"]
[BlackElo "2628"]
[Round "8.8"]
[Result "0-1"]
[TimeControl "180+2"]

1. e4 {[%emt 00:00:02] [%clk 00:03:02]} c5 {[%clk 00:03:04]} 2. Nf3 {[%clk
00:03:03]} d6 {[%clk 00:03:05]} 3. d4 {[%clk 00:03:04]} cxd4 {[%emt 00:00:01]
[%clk 00:03:06]} 4. Nxd4 {[%clk 00:03:06]} Nf6 {[%clk 00:03:07]} 5. Nc3 {[%clk
00:03:07]} a6 {[%clk 00:03:09]} 6. a3 {[%clk 00:03:08]} e5 {[%emt 00:00:02]
[%clk 00:03:09]} 7. Nf5 {[%clk 00:03:09]} d5 {[%emt 00:00:04] [%clk 00:03:07]}
8. Bg5 {[%clk 00:03:10]} d4 {[%emt 00:00:03] [%clk 00:03:06]} 9. Bxf6 {[%emt
00:00:02] [%clk 00:03:11]} gxf6 {[%emt 00:00:15] [%clk 00:02:53]} 10. Nb1 {[%emt
00:00:01] [%clk 00:03:12]} Qb6 {[%emt 00:00:14] [%clk 00:02:41]} 11. Nd2 {[%emt
00:00:20] [%clk 00:02:54]} Be6 {[%emt 00:00:20] [%clk 00:02:22]} 12. Bc4 {[%emt
00:00:10] [%clk 00:02:46]} Nd7 {[%emt 00:00:13] [%clk 00:02:10]} 13. O-O {[%emt
00:00:05] [%clk 00:02:44]} h5 {[%emt 00:00:04] [%clk 00:02:08]} 14. c3 {[%emt
00:00:13] [%clk 00:02:34]} dxc3 {[%emt 00:00:08] [%clk 00:02:02]} 15. bxc3
{[%emt 00:00:01] [%clk 00:02:35]} Qc7 {[%emt 00:00:08] [%clk 00:01:56]} 16. Qe2
{[%emt 00:00:04] [%clk 00:02:32]} Nb6 {[%emt 00:00:12] [%clk 00:01:45]} 17. Bb3
{[%emt 00:00:16] [%clk 00:02:18]} O-O-O {[%emt 00:00:14] [%clk 00:01:34]} 18.
Rab1 {[%emt 00:00:02] [%clk 00:02:18]} Bxa3 {[%emt 00:00:08] [%clk 00:01:28]}
19. Ng7 {[%emt 00:00:08] [%clk 00:02:12]} Bg4 {[%emt 00:00:11] [%clk 00:01:19]}
20. Nf3 {[%emt 00:00:04] [%clk 00:02:10]} Rhg8 {[%emt 00:00:12] [%clk 00:01:09]}
21. Nf5 {[%emt 00:00:01] [%clk 00:02:11]} Bc5 {[%emt 00:00:05] [%clk 00:01:06]}
22. Kh1 {[%emt 00:00:03] [%clk 00:02:09]} Bxf5 {[%emt 00:00:11] [%clk 00:00:58]}
23. exf5 {[%clk 00:02:10]} Rd7 {[%clk 00:01:00]} 24. Nd2 {[%emt 00:00:05] [%clk
00:02:08]} Rgd8 {[%emt 00:00:08] [%clk 00:00:54]} 25. Ne4 {[%clk 00:02:09]} Qc6
{[%clk 00:00:55]} 26. Rfe1 {[%emt 00:00:08] [%clk 00:02:03]} Nd5 {[%emt
00:00:11] [%clk 00:00:47]} 27. Bxd5 {[%emt 00:00:25] [%clk 00:01:40]} Rxd5
{[%emt 00:00:01] [%clk 00:00:48]} 28. Qxh5 {[%clk 00:01:41]} R8d7 {[%emt
00:00:01] [%clk 00:00:49]} 29. Qh8+ {[%emt 00:00:02] [%clk 00:01:40]} Rd8 {[%emt
00:00:07] [%clk 00:00:44]} 30. Qg7 {[%emt 00:00:02] [%clk 00:01:39]} Be7 {[%emt
00:00:04] [%clk 00:00:42]} 31. Qxf7 {[%emt 00:00:03] [%clk 00:01:39]} R5d7
{[%emt 00:00:03] [%clk 00:00:42]} 32. Qb3 {[%emt 00:00:07] [%clk 00:01:33]} Kb8
{[%emt 00:00:06] [%clk 00:00:38]} 33. h3 {[%emt 00:00:05] [%clk 00:01:30]} Rd3
{[%emt 00:00:03] [%clk 00:00:37]} 34. Qf7 {[%emt 00:00:03] [%clk 00:01:30]} R8d7
{[%emt 00:00:02] [%clk 00:00:37]} 35. Kh2 {[%emt 00:00:05] [%clk 00:01:27]} Ka7
{[%emt 00:00:02] [%clk 00:00:36]} 36. Qb3 {[%emt 00:00:08] [%clk 00:01:21]} Rc7
{[%emt 00:00:04] [%clk 00:00:35]} 37. Rb2 {[%emt 00:00:07] [%clk 00:01:16]} Rd5
{[%emt 00:00:05] [%clk 00:00:31]} 38. Qa2 {[%emt 00:00:08] [%clk 00:01:10]} Rb5
{[%emt 00:00:03] [%clk 00:00:30]} 39. Rxb5 {[%emt 00:00:02] [%clk 00:01:10]}
Qxb5 {[%emt 00:00:01] [%clk 00:00:31]} 40. Qe6 {[%emt 00:00:04] [%clk 00:01:08]}
Qd3 {[%emt 00:00:11] [%clk 00:00:23]} 41. Re3 {[%emt 00:00:10] [%clk 00:00:59]}
Qd8 {[%emt 00:00:06] [%clk 00:00:19]} 42. c4 {[%emt 00:00:04] [%clk 00:00:57]}
Rc6 {[%emt 00:00:02] [%clk 00:00:19]} 43. Qd5 {[%clk 00:00:59]} Qc8 {[%emt
00:00:02] [%clk 00:00:18]} 44. Rb3 {[%emt 00:00:06] [%clk 00:00:55]} Qxf5 {[%emt
00:00:03] [%clk 00:00:18]} 45. Rb2 {[%emt 00:00:13] [%clk 00:00:44]} Qc8 {[%emt
00:00:04] [%clk 00:00:15]} 46. Qf7 {[%emt 00:00:09] [%clk 00:00:37]} Qc7 {[%emt
00:00:04] [%clk 00:00:13]} 47. Qd5 {[%emt 00:00:08] [%clk 00:00:32]} f5 {[%emt
00:00:03] [%clk 00:00:11]} 48. Ng3 {[%clk 00:00:33]} Qc8 {[%emt 00:00:06] [%clk
00:00:07]} 49. Qxe5 {[%emt 00:00:07] [%clk 00:00:29]} Bd6 {[%clk 00:00:08]} 50.
Qd4+ {[%emt 00:00:11] [%clk 00:00:20]} Ka8 {[%emt 00:00:01] [%clk 00:00:09]} 51.
Qd5 {[%emt 00:00:10] [%clk 00:00:12]} Bb8 {[%emt 00:00:02] [%clk 00:00:09]} 52.
Rb4 {[%emt 00:00:05] [%clk 00:00:09]} f4 {[%emt 00:00:01] [%clk 00:00:10]} 53.
Ne4 {[%clk 00:00:10]} f3+ {[%emt 00:00:02] [%clk 00:00:10]} 54. g3 {[%emt
00:00:01] [%clk 00:00:12]} Rh6 {[%emt 00:00:02] [%clk 00:00:09]} 55. Ng5 {[%emt
00:00:04] [%clk 00:00:10]} Qc7 {[%emt 00:00:03] [%clk 00:00:08]} 56. Qxf3 {[%emt
00:00:03] [%clk 00:00:08]} Rc6 {[%emt 00:00:03] [%clk 00:00:08]} 57. Kg2 {[%emt
00:00:04] [%clk 00:00:07]} Qe7 {[%emt 00:00:02] [%clk 00:00:08]} 58. Rxb7 {[%emt
00:00:06] [%clk 00:00:00]} Qxb7 {[%emt 00:00:01] [%clk 00:03:02]} 0-1

[Site "Europe Echecs"]

[Event "Championnat d'Europe de Blitz"]
[Date "2024.12.09"]
[White "Pultinevicius, Paulius"]
[Black "Dvirnyy, Danyyil"]
[WhiteElo "2579"]
[BlackElo "2491"]
[Round "8.9"]
[Result "0-1"]
[TimeControl "180+2"]

1. d4 {[%emt 00:00:01] [%clk 00:03:03]} Nf6 {[%emt 00:00:01] [%clk 00:03:03]} 2.
c4 {[%emt 00:00:01] [%clk 00:03:04]} e6 {[%clk 00:03:04]} 3. Nc3 {[%emt
00:00:01] [%clk 00:03:05]} d5 {[%emt 00:00:01] [%clk 00:03:05]} 4. cxd5 {[%emt
00:00:02] [%clk 00:03:05]} exd5 {[%clk 00:03:06]} 5. Bg5 {[%emt 00:00:01] [%clk
00:03:06]} Be7 {[%emt 00:00:02] [%clk 00:03:07]} 6. e3 {[%emt 00:00:01] [%clk
00:03:06]} h6 {[%emt 00:00:02] [%clk 00:03:07]} 7. Bh4 {[%emt 00:00:05] [%clk
00:03:02]} O-O {[%emt 00:00:03] [%clk 00:03:07]} 8. Bd3 {[%emt 00:00:01] [%clk
00:03:03]} Re8 {[%emt 00:00:03] [%clk 00:03:06]} 9. Nge2 {[%emt 00:00:07] [%clk
00:02:58]} c6 {[%emt 00:00:03] [%clk 00:03:05]} 10. f3 {[%emt 00:00:08] [%clk
00:02:52]} b5 {[%emt 00:00:06] [%clk 00:03:02]} 11. Rc1 {[%emt 00:00:06] [%clk
00:02:47]} a5 {[%emt 00:00:04] [%clk 00:03:00]} 12. O-O {[%emt 00:00:04] [%clk
00:02:45]} Nbd7 {[%emt 00:00:12] [%clk 00:02:51]} 13. Bf2 {[%emt 00:00:08] [%clk
00:02:39]} Bb7 {[%emt 00:00:35] [%clk 00:02:17]} 14. Ng3 {[%emt 00:00:02] [%clk
00:02:39]} Rc8 {[%emt 00:00:39] [%clk 00:01:40]} 15. e4 {[%emt 00:00:27] [%clk
00:02:14]} b4 {[%emt 00:00:16] [%clk 00:01:26]} 16. Na4 {[%clk 00:02:15]} dxe4
{[%emt 00:00:05] [%clk 00:01:24]} 17. fxe4 {[%emt 00:00:01] [%clk 00:02:15]} c5
{[%emt 00:00:14] [%clk 00:01:12]} 18. e5 {[%emt 00:01:37] [%clk 00:00:41]} Nd5
{[%emt 00:00:01] [%clk 00:01:12]} 19. Qg4 {[%emt 00:00:04] [%clk 00:00:39]} Bf8
{[%emt 00:00:07] [%clk 00:01:07]} 20. Nf5 {[%emt 00:00:15] [%clk 00:00:25]} Qg5
{[%emt 00:00:14] [%clk 00:00:56]} 21. Qf3 {[%emt 00:00:07] [%clk 00:00:20]} cxd4
{[%emt 00:00:14] [%clk 00:00:44]} 22. Rxc8 {[%emt 00:00:02] [%clk 00:00:21]}
Rxc8 {[%emt 00:00:06] [%clk 00:00:40]} 23. Bh4 {[%emt 00:00:07] [%clk 00:00:15]}
Nxe5 {[%emt 00:00:02] [%clk 00:00:40]} 24. Qe4 {[%clk 00:00:17]} Qg6 {[%emt
00:00:30] [%clk 00:00:12]} 25. Qxe5 {[%emt 00:00:01] [%clk 00:00:18]} f6 {[%emt
00:00:05] [%clk 00:00:09]} 26. Qe6+ {[%emt 00:00:03] [%clk 00:00:17]} Qf7 {[%clk
00:00:10]} 27. Qe4 {[%emt 00:00:10] [%clk 00:00:08]} g6 {[%emt 00:00:03] [%clk
00:00:10]} 28. Qg4 {[%emt 00:00:05] [%clk 00:00:06]} Kh7 {[%emt 00:00:06] [%clk
00:00:06]} 29. Nxd4 {[%emt 00:00:03] [%clk 00:00:04]} Ne3 {[%emt 00:00:02] [%clk
00:00:06]} 30. Rxf6 {[%emt 00:00:02] [%clk 00:00:04]} Qxf6 {[%emt 00:00:03]
[%clk 00:00:06]} 31. Qd7+ {[%emt 00:00:03] [%clk 00:00:03]} Qg7 {[%clk
00:00:07]} 32. Qxg7+ {[%emt 00:00:02] [%clk 00:00:03]} Bxg7 {[%clk 00:00:08]}
33. Ne6 {[%emt 00:00:02] [%clk 00:00:03]} Rc1+ {[%emt 00:00:01] [%clk 00:00:08]}
34. Kf2 {[%emt 00:00:01] [%clk 00:00:05]} Nxg2 {[%clk 00:00:09]} 35. Bg3 {[%emt
00:00:02] [%clk 00:00:05]} Bf6 {[%emt 00:00:04] [%clk 00:00:08]} 36. Nac5 {[%emt
00:00:01] [%clk 00:00:05]} Rxc5 {[%emt 00:00:02] [%clk 00:00:08]} 37. Nxc5
{[%emt 00:00:02] [%clk 00:00:06]} Bd4+ {[%clk 00:00:09]} 38. Ke2 {[%emt
00:00:02] [%clk 00:00:06]} Bxc5 {[%emt 00:00:02] [%clk 00:00:09]} 39. Bc7 {[%clk
00:00:07]} a4 {[%clk 00:00:11]} 40. Bb5 {[%emt 00:00:01] [%clk 00:00:08]} a3
{[%clk 00:00:12]} 41. b3 {[%emt 00:00:01] [%clk 00:00:09]} Nh4 {[%emt 00:00:02]
[%clk 00:00:13]} 42. Kd3 {[%emt 00:00:01] [%clk 00:00:10]} Bd5 {[%emt 00:00:01]
[%clk 00:00:13]} 43. Bc4 {[%emt 00:00:03] [%clk 00:00:09]} Bxc4+ {[%emt
00:00:02] [%clk 00:00:13]} 44. Kxc4 {[%emt 00:00:01] [%clk 00:00:10]} Be7 {[%emt
00:00:01] [%clk 00:00:15]} 45. Ba5 {[%emt 00:00:01] [%clk 00:00:10]} Nf3 {[%emt
00:00:01] [%clk 00:00:16]} 46. Bxb4 {[%clk 00:00:12]} Ne5+ {[%emt 00:00:05]
[%clk 00:00:13]} 47. Kb5 {[%emt 00:00:01] [%clk 00:00:12]} Bxb4 {[%emt 00:00:03]
[%clk 00:00:12]} 48. Kxb4 {[%emt 00:00:01] [%clk 00:00:14]} g5 {[%emt 00:00:02]
[%clk 00:00:11]} 49. Kc5 {[%emt 00:00:07] [%clk 00:00:09]} Kg6 {[%emt 00:00:03]
[%clk 00:00:10]} 50. Kd5 {[%emt 00:00:04] [%clk 00:00:08]} Kf5 {[%emt 00:00:01]
[%clk 00:00:11]} 51. b4 {[%clk 00:00:09]} Nd3 {[%emt 00:00:10] [%clk 00:00:03]}
52. b5 {[%emt 00:00:01] [%clk 00:00:10]} Nb4+ {[%clk 00:00:04]} 53. Kc4 {[%clk
00:00:11]} Nxa2 {[%emt 00:00:01] [%clk 00:00:05]} 54. b6 {[%emt 00:00:01] [%clk
00:00:12]} Nb4 {[%clk 00:00:06]} 55. Kd4 {[%emt 00:00:07]} 0-1

[Site "Europe Echecs"]

[Event "Championnat d'Europe de Blitz"]
[Date "2024.12.09"]
[White "Lagarde, Maxime"]
[Black "Bernadskiy, Vitaliy"]
[WhiteElo "2600"]
[BlackElo "2546"]
[Round "8.10"]
[Result "1/2-1/2"]
[TimeControl "180+2"]

1. e4 {[%clk 00:03:03]} c5 {[%emt 00:00:01] [%clk 00:03:03]} 2. Nf3 {[%emt
00:00:01] [%clk 00:03:04]} Nc6 {[%emt 00:00:01] [%clk 00:03:04]} 3. Bb5 {[%emt
00:00:03] [%clk 00:03:04]} Nf6 {[%emt 00:00:01] [%clk 00:03:05]} 4. d3 {[%emt
00:00:13] [%clk 00:02:53]} Qa5+ {[%emt 00:00:02] [%clk 00:03:04]} 5. Nc3 {[%emt
00:00:01] [%clk 00:02:54]} Nd4 {[%emt 00:00:01] [%clk 00:03:05]} 6. Bc4 {[%emt
00:00:08] [%clk 00:02:48]} b5 {[%emt 00:00:05] [%clk 00:03:02]} 7. Bb3 {[%emt
00:00:13] [%clk 00:02:38]} Nxb3 {[%emt 00:00:17] [%clk 00:02:46]} 8. cxb3 {[%emt
00:00:02] [%clk 00:02:38]} Bb7 {[%emt 00:00:03] [%clk 00:02:45]} 9. O-O {[%emt
00:00:05] [%clk 00:02:35]} g6 {[%emt 00:00:14] [%clk 00:02:33]} 10. d4 {[%emt
00:00:19] [%clk 00:02:18]} cxd4 {[%emt 00:00:35] [%clk 00:02:00]} 11. Qxd4
{[%emt 00:00:01] [%clk 00:02:19]} Bg7 {[%emt 00:00:02] [%clk 00:02:00]} 12. b4
{[%emt 00:00:43] [%clk 00:01:39]} Qb6 {[%emt 00:00:08] [%clk 00:01:54]} 13. Qxb6
{[%emt 00:00:02] [%clk 00:01:38]} axb6 {[%emt 00:00:02] [%clk 00:01:54]} 14. Re1
{[%emt 00:00:08] [%clk 00:01:32]} O-O {[%emt 00:00:08] [%clk 00:01:48]} 15. Bg5
{[%emt 00:00:06] [%clk 00:01:29]} h6 {[%emt 00:00:09] [%clk 00:01:41]} 16. Bxf6
{[%emt 00:00:05] [%clk 00:01:25]} Bxf6 {[%emt 00:00:02] [%clk 00:01:42]} 17. e5
{[%clk 00:01:26]} Bg7 {[%emt 00:00:01] [%clk 00:01:42]} 18. Nxb5 {[%emt
00:00:05] [%clk 00:01:23]} Rfc8 {[%emt 00:00:01] [%clk 00:01:43]} 19. Nfd4
{[%emt 00:00:05] [%clk 00:01:20]} Ba6 {[%emt 00:01:06] [%clk 00:00:40]} 20. a3
{[%emt 00:00:31] [%clk 00:00:51]} Bxb5 {[%emt 00:00:02] [%clk 00:00:40]} 21.
Nxb5 {[%clk 00:00:51]} Rc2 {[%emt 00:00:01] [%clk 00:00:41]} 22. Rad1 {[%emt
00:00:12] [%clk 00:00:41]} Rd8 {[%emt 00:00:23] [%clk 00:00:21]} 23. Nd4 {[%emt
00:00:01] [%clk 00:00:42]} Rxb2 {[%emt 00:00:08] [%clk 00:00:14]} 24. Nc6 {[%emt
00:00:01] [%clk 00:00:43]} Ra8 {[%clk 00:00:16]} 25. Rxd7 {[%emt 00:00:08] [%clk
00:00:37]} e6 {[%emt 00:00:09] [%clk 00:00:08]} 26. Rb7 {[%emt 00:00:04] [%clk
00:00:35]} Rxa3 {[%emt 00:00:02] [%clk 00:00:09]} 27. Rxb6 {[%emt 00:00:02]
[%clk 00:00:35]} Re2 {[%emt 00:00:01] [%clk 00:00:09]} 28. Kf1 {[%emt 00:00:10]
[%clk 00:00:28]} Rc2 {[%emt 00:00:02] [%clk 00:00:09]} 29. Nd4 {[%emt 00:00:15]
[%clk 00:00:15]} Rb2 {[%emt 00:00:01] [%clk 00:00:09]} 30. Rb8+ {[%emt 00:00:06]
[%clk 00:00:11]} Kh7 {[%clk 00:00:10]} 31. Rb7 {[%clk 00:00:12]} Kg8 {[%emt
00:00:01] [%clk 00:00:11]} 32. Rb8+ {[%clk 00:00:14]} Kh7 {[%emt 00:00:01] [%clk
00:00:12]} 33. Rb7 {[%emt 00:00:01] [%clk 00:00:14]} Kg8 {[%emt 00:00:01] [%clk
00:00:13]} 34. Rb8+ {[%emt 00:00:11] [%clk 00:00:06]} 1/2-1/2

[Site "Europe Echecs"]

[Event "Championnat d'Europe de Blitz"]
[Date "2024.12.09"]
[White "Paichadze, Luka"]
[Black "Sargissian, Gabriel"]
[WhiteElo "2532"]
[BlackElo "2628"]
[Round "8.11"]
[Result "1/2-1/2"]
[TimeControl "180+2"]

1. e4 {[%emt 00:00:02] [%clk 00:03:02]} e5 {[%emt 00:00:02] [%clk 00:03:03]} 2.
Nf3 {[%emt 00:00:02] [%clk 00:03:02]} Nc6 {[%clk 00:03:03]} 3. d4 {[%emt
00:00:02] [%clk 00:03:03]} exd4 {[%emt 00:00:02] [%clk 00:03:03]} 4. Nxd4 {[%emt
00:00:01] [%clk 00:03:03]} Nf6 {[%emt 00:00:02] [%clk 00:03:03]} 5. Nxc6 {[%emt
00:00:03] [%clk 00:03:03]} bxc6 {[%emt 00:00:03]} 6. Bd3 {[%clk 00:03:04]} d5
{[%emt 00:00:06] [%clk 00:02:59]} 7. exd5 {[%emt 00:00:01] [%clk 00:03:05]} cxd5
{[%emt 00:00:02] [%clk 00:03:00]} 8. O-O {[%emt 00:00:01] [%clk 00:03:04]} Be7
{[%emt 00:00:02] [%clk 00:03:00]} 9. h3 {[%emt 00:00:02] [%clk 00:03:05]} O-O
{[%emt 00:00:02] [%clk 00:02:59]} 10. Nd2 {[%emt 00:00:02] [%clk 00:03:06]} c5
{[%emt 00:00:08] [%clk 00:02:53]} 11. b3 {[%emt 00:00:01] [%clk 00:03:07]} Bb7
{[%emt 00:00:13] [%clk 00:02:42]} 12. Re1 {[%emt 00:00:07] [%clk 00:03:02]} d4
{[%emt 00:00:25] [%clk 00:02:19]} 13. Nc4 {[%emt 00:00:01] [%clk 00:03:02]} Re8
{[%emt 00:00:13] [%clk 00:02:08]} 14. Bd2 {[%emt 00:00:05] [%clk 00:03:00]} Qd5
{[%emt 00:00:07] [%clk 00:02:02]} 15. f3 {[%emt 00:00:01] [%clk 00:03:01]} Bd6
{[%emt 00:00:36] [%clk 00:01:29]} 16. Nxd6 {[%emt 00:00:16] [%clk 00:02:46]}
Qxd6 {[%emt 00:00:01] [%clk 00:01:29]} 17. Rxe8+ {[%emt 00:00:02] [%clk
00:02:47]} Rxe8 {[%emt 00:00:01] [%clk 00:01:30]} 18. Qf1 {[%emt 00:00:01] [%clk
00:02:48]} Nd5 {[%emt 00:00:26] [%clk 00:01:06]} 19. Re1 {[%emt 00:00:01] [%clk
00:02:49]} Re7 {[%emt 00:00:04] [%clk 00:01:05]} 20. Rxe7 {[%emt 00:00:38] [%clk
00:02:12]} Qxe7 {[%emt 00:00:02] [%clk 00:01:05]} 21. Qe1 {[%emt 00:00:01] [%clk
00:02:12]} Qxe1+ {[%clk 00:01:00]} 22. Bxe1 {[%emt 00:00:09] [%clk 00:02:13]}
Nf4 {[%emt 00:00:36] [%clk 00:00:26]} 23. Kf2 {[%emt 00:00:22] [%clk 00:01:53]}
Nxd3+ {[%emt 00:00:01] [%clk 00:00:27]} 24. cxd3 {[%emt 00:00:01] [%clk
00:01:54]} Kf8 {[%clk 00:00:29]} 25. b4 {[%emt 00:00:12] [%clk 00:01:43]} Ba6
{[%emt 00:00:04] [%clk 00:00:27]} 26. Ke2 {[%emt 00:00:17] [%clk 00:01:28]} c4
{[%emt 00:00:06] [%clk 00:00:24]} 27. Bf2 {[%emt 00:00:01] [%clk 00:01:28]}
cxd3+ {[%emt 00:00:03] [%clk 00:00:23]} 28. Kd2 {[%clk 00:01:29]} Bb5 {[%emt
00:00:03] [%clk 00:00:23]} 29. Bxd4 {[%emt 00:00:04] [%clk 00:01:27]} a6 {[%clk
00:00:25]} 30. a4 {[%emt 00:00:09] [%clk 00:01:21]} Bxa4 {[%emt 00:00:01] [%clk
00:00:25]} 1/2-1/2

[Site "Europe Echecs"]

[Event "Championnat d'Europe de Blitz"]
[Date "2024.12.09"]
[White "Kalezic, Blazo"]
[Black "Pantsulaia, Levan"]
[WhiteElo "2382"]
[BlackElo "2522"]
[Round "8.12"]
[Result "0-1"]
[TimeControl "180+2"]

1. e4 {[%emt 00:00:02] [%clk 00:03:02]} c5 {[%emt 00:00:02] [%clk 00:03:04]} 2.
Nf3 {[%clk 00:03:02]} e6 {[%clk 00:03:05]} 3. c3 {[%emt 00:00:04] [%clk
00:03:01]} Nf6 {[%emt 00:00:02] [%clk 00:03:05]} 4. d3 {[%emt 00:00:09] [%clk
00:02:54]} d6 {[%emt 00:00:14] [%clk 00:02:54]} 5. Nbd2 {[%emt 00:00:02] [%clk
00:02:52]} Nc6 {[%emt 00:00:02] [%clk 00:02:55]} 6. g3 {[%emt 00:00:06] [%clk
00:02:48]} Be7 {[%emt 00:00:11] [%clk 00:02:46]} 7. Bg2 {[%emt 00:00:01] [%clk
00:02:49]} O-O {[%emt 00:00:01] [%clk 00:02:46]} 8. O-O {[%emt 00:00:02] [%clk
00:02:50]} Bd7 {[%emt 00:00:02] [%clk 00:02:47]} 9. Re1 {[%emt 00:00:09] [%clk
00:02:42]} Rc8 {[%emt 00:00:06] [%clk 00:02:43]} 10. Nf1 {[%emt 00:00:04] [%clk
00:02:40]} b5 {[%emt 00:00:02] [%clk 00:02:43]} 11. a3 {[%emt 00:00:04] [%clk
00:02:38]} Ne5 {[%emt 00:00:18] [%clk 00:02:27]} 12. d4 {[%emt 00:00:17] [%clk
00:02:23]} cxd4 {[%emt 00:00:04] [%clk 00:02:25]} 13. cxd4 {[%emt 00:00:02]
[%clk 00:02:22]} Nxf3+ {[%emt 00:00:03] [%clk 00:02:25]} 14. Bxf3 {[%emt
00:00:02] [%clk 00:02:22]} Bc6 {[%emt 00:00:15] [%clk 00:02:13]} 15. Bg2 {[%emt
00:00:02] [%clk 00:02:21]} Ba8 {[%emt 00:00:06] [%clk 00:02:09]} 16. d5 {[%emt
00:00:12] [%clk 00:02:11]} Re8 {[%emt 00:00:32] [%clk 00:01:39]} 17. Ne3 {[%emt
00:00:04] [%clk 00:02:09]} Bf8 {[%emt 00:00:01] [%clk 00:01:40]} 18. Bd2 {[%emt
00:00:01] [%clk 00:02:10]} exd5 {[%emt 00:00:40] [%clk 00:01:03]} 19. exd5
{[%emt 00:00:01] [%clk 00:02:10]} Ne4 {[%emt 00:00:01] [%clk 00:01:04]} 20. Rc1
{[%emt 00:00:31] [%clk 00:01:41]} Rxc1 {[%emt 00:00:25] [%clk 00:00:41]} 21.
Bxc1 {[%emt 00:00:01] [%clk 00:01:41]} Nc5 {[%emt 00:00:11] [%clk 00:00:32]} 22.
Bd2 {[%emt 00:00:19] [%clk 00:01:25]} Nd3 {[%emt 00:00:07] [%clk 00:00:27]} 23.
Re2 {[%emt 00:00:06] [%clk 00:01:19]} Nxb2 {[%emt 00:00:03] [%clk 00:00:28]} 24.
Qb3 {[%emt 00:00:10] [%clk 00:01:10]} Nc4 {[%emt 00:00:02] [%clk 00:00:28]} 25.
Qxb5 {[%emt 00:00:06] [%clk 00:01:07]} Nxd2 {[%emt 00:00:02] [%clk 00:00:29]}
26. Rxd2 {[%emt 00:00:01] [%clk 00:01:07]} Qb8 {[%emt 00:00:05] [%clk 00:00:26]}
27. Qd3 {[%emt 00:00:08] [%clk 00:01:00]} g6 {[%emt 00:00:03] [%clk 00:00:27]}
28. h4 {[%emt 00:00:08] [%clk 00:00:53]} Bg7 {[%emt 00:00:01] [%clk 00:00:27]}
29. h5 {[%emt 00:00:04] [%clk 00:00:51]} Bb7 {[%emt 00:00:04] [%clk 00:00:26]}
30. Rd1 {[%emt 00:00:21] [%clk 00:00:32]} Qc7 {[%emt 00:00:01] [%clk 00:00:27]}
31. Ng4 {[%emt 00:00:11] [%clk 00:00:23]} Bc8 {[%emt 00:00:02] [%clk 00:00:27]}
32. Ne3 {[%emt 00:00:02] [%clk 00:00:23]} Bd7 {[%emt 00:00:03] [%clk 00:00:27]}
33. hxg6 {[%emt 00:00:02] [%clk 00:00:22]} hxg6 {[%emt 00:00:01] [%clk
00:00:28]} 34. Kh2 {[%emt 00:00:11] [%clk 00:00:13]} Qc5 {[%emt 00:00:01] [%clk
00:00:29]} 35. Bh3 {[%emt 00:00:02] [%clk 00:00:13]} Bb5 {[%emt 00:00:05] [%clk
00:00:26]} 36. Qb3 {[%emt 00:00:03] [%clk 00:00:11]} Bh6 {[%emt 00:00:11] [%clk
00:00:17]} 37. Ng4 {[%emt 00:00:08] [%clk 00:00:06]} Bg7 {[%emt 00:00:01] [%clk
00:00:19]} 38. Ne3 {[%clk 00:00:07]} a5 {[%emt 00:00:02] [%clk 00:00:18]} 39. a4
{[%emt 00:00:02] [%clk 00:00:07]} Be2 {[%emt 00:00:01] [%clk 00:00:19]} 40. Re1
{[%emt 00:00:03] [%clk 00:00:06]} Bc4 {[%emt 00:00:03] [%clk 00:00:17]} 41. Qc2
{[%emt 00:00:03] [%clk 00:00:05]} Bxd5 {[%emt 00:00:04] [%clk 00:00:17]} 42.
Qxc5 {[%emt 00:00:02] [%clk 00:00:04]} dxc5 {[%emt 00:00:01] [%clk 00:00:18]}
43. Rc1 {[%clk 00:00:06]} Bb3 {[%emt 00:00:12] [%clk 00:00:07]} 44. Rxc5 {[%emt
00:00:02] [%clk 00:00:07]} Ra8 {[%emt 00:00:01] [%clk 00:00:08]} 45. Bg2 {[%emt
00:00:02] [%clk 00:00:07]} Ra7 {[%clk 00:00:09]} 46. Bd5 {[%emt 00:00:04] [%clk
00:00:05]} Bxa4 {[%emt 00:00:02] [%clk 00:00:09]} 47. Nc4 {[%clk 00:00:06]} Bd4
{[%emt 00:00:05] [%clk 00:00:06]} 48. Rc8+ {[%emt 00:00:03] [%clk 00:00:05]} Kg7
{[%emt 00:00:01] [%clk 00:00:07]} 49. Nd6 {[%emt 00:00:03] [%clk 00:00:04]} Bxf2
{[%emt 00:00:05] [%clk 00:00:05]} 50. Rc4 {[%emt 00:00:03] [%clk 00:00:00]} Bb3
{[%emt 00:00:02] [%clk 00:00:05]} 0-1

[Site "Europe Echecs"]